[Event "***Titled Tuesday 3|2 Blitz"]
[Site "Chess.com"]
[Date "2017.02.07"]
[Round "2"]
[White "coalescenet"]
[Black "yurisolo"]
[Result "1/2-1/2"]
[WhiteElo "2314"]
[BlackElo "2521"]
[TimeControl "180+2"]
[EndTime "13:28:18 PST"]
[Termination "Game drawn by stalemate"]

1. d4 {[%clk 0:03:01.3]} 1... d6 {[%clk 0:02:59.5]} 2. Nf3 {[%clk 0:03:00.2]}
2... g6 {[%clk 0:03:00.2]} 3. Bg5 {[%clk 0:02:58.4]} 3... Bg7 {[%clk 0:02:58.8]}
4. e3 {[%clk 0:02:59.3]} 4... f5 {[%clk 0:02:51.5]} 5. Nc3 {[%clk 0:02:49.6]}
5... Nf6 {[%clk 0:02:52.3]} 6. Bxf6 {[%clk 0:02:47.1]} 6... Bxf6 {[%clk
0:02:52.5]} 7. e4 {[%clk 0:02:48.6]} 7... e6 {[%clk 0:02:45.1]} 8. Qd2 {[%clk
0:02:36.9]} 8... O-O {[%clk 0:02:38.9]} 9. h4 {[%clk 0:02:35.5]} 9... d5 {[%clk
0:02:28.2]} 10. exf5 {[%clk 0:02:13.3]} 10... exf5 {[%clk 0:02:24.2]} 11. O-O-O
{[%clk 0:02:14.8]} 11... Nc6 {[%clk 0:02:19]} 12. Kb1 {[%clk 0:02:14.6]} 12...
f4 {[%clk 0:02:09.7]} 13. Qxf4 {[%clk 0:02:03.7]} 13... Bxd4 {[%clk 0:02:09.1]}
14. Qd2 {[%clk 0:01:56.4]} 14... Bxc3 {[%clk 0:01:57.5]} 15. Qxc3 {[%clk
0:01:56.8]} 15... Be6 {[%clk 0:01:55.2]} 16. h5 {[%clk 0:01:53.7]} 16... Qf6
{[%clk 0:01:55.8]} 17. Qxf6 {[%clk 0:01:43.5]} 17... Rxf6 {[%clk 0:01:57.7]} 18.
Bb5 {[%clk 0:01:39.6]} 18... Rd8 {[%clk 0:01:44.4]} 19. hxg6 {[%clk 0:01:38.8]}
19... Rxg6 {[%clk 0:01:35.3]} 20. Bxc6 {[%clk 0:01:24.3]} 20... bxc6 {[%clk
0:01:35.9]} 21. Ne5 {[%clk 0:01:25.8]} 21... Rxg2 {[%clk 0:01:36.5]} 22. Nxc6
{[%clk 0:01:24.2]} 22... Rd6 {[%clk 0:01:37.2]} 23. Nd4 {[%clk 0:01:23.5]} 23...
Bd7 {[%clk 0:01:30.1]} 24. Rhg1 {[%clk 0:01:17.8]} 24... Rdg6 {[%clk 0:01:29.6]}
25. Nf3 {[%clk 0:01:04.1]} 25... c6 {[%clk 0:01:20.8]} 26. Kc1 {[%clk
0:00:58.7]} 26... Bf5 {[%clk 0:01:15.6]} 27. Rxg2 {[%clk 0:00:57.7]} 27... Rxg2
{[%clk 0:01:16]} 28. Rg1 {[%clk 0:00:52.9]} 28... Rxg1+ {[%clk 0:01:15.4]} 29.
Nxg1 {[%clk 0:00:54.8]} 29... Kf7 {[%clk 0:01:12.8]} 30. Ne2 {[%clk 0:00:51.1]}
30... Kf6 {[%clk 0:01:12]} 31. Kd2 {[%clk 0:00:52.7]} 31... h5 {[%clk
0:01:10.5]} 32. f3 {[%clk 0:00:49.2]} 32... h4 {[%clk 0:01:06.7]} 33. c3 {[%clk
0:00:48.2]} 33... h3 {[%clk 0:01:07.7]} 34. Ke3 {[%clk 0:00:48.5]} 34... c5
{[%clk 0:01:04.2]} 35. Kf4 {[%clk 0:00:44.9]} 35... Bd3 {[%clk 0:01:01.6]} 36.
Ng3 {[%clk 0:00:42.8]} 36... h2 {[%clk 0:00:56.7]} 37. Ke3 {[%clk 0:00:38]}
37... Bb1 {[%clk 0:00:56]} 38. a3 {[%clk 0:00:35.6]} 38... Kg5 {[%clk
0:00:52.7]} 39. Kf2 {[%clk 0:00:35.4]} 39... d4 {[%clk 0:00:54]} 40. cxd4 {[%clk
0:00:34.6]} 40... cxd4 {[%clk 0:00:55.9]} 41. Kg2 {[%clk 0:00:36.1]} 41... d3
{[%clk 0:00:45.6]} 42. Nf1 {[%clk 0:00:34.5]} 42... Kf4 {[%clk 0:00:44]} 43.
Kxh2 {[%clk 0:00:31]} 43... Ba2 {[%clk 0:00:40]} 44. Kg2 {[%clk 0:00:30.8]}
44... Bd5 {[%clk 0:00:40.3]} 45. Kf2 {[%clk 0:00:30.1]} 45... Bxf3 {[%clk
0:00:41.4]} 46. Nd2 {[%clk 0:00:30.2]} 46... Bd5 {[%clk 0:00:41.9]} 47. Nf1
{[%clk 0:00:29.4]} 47... Ke4 {[%clk 0:00:42.1]} 48. Nd2+ {[%clk 0:00:30]} 48...
Kd4 {[%clk 0:00:43.1]} 49. Ke1 {[%clk 0:00:22.4]} 49... a5 {[%clk 0:00:42.8]}
50. Nf1 {[%clk 0:00:20]} 50... Bg2 {[%clk 0:00:40.9]} 51. Nd2 {[%clk 0:00:20.3]}
51... Bd5 {[%clk 0:00:38]} 52. Nb1 {[%clk 0:00:20.4]} 52... Ba2 {[%clk
0:00:36.8]} 53. Nd2 {[%clk 0:00:21.9]} 53... a4 {[%clk 0:00:38.1]} 54. Nf1
{[%clk 0:00:22.8]} 54... Kc4 {[%clk 0:00:35.2]} 55. Kd2 {[%clk 0:00:22.4]} 55...
Bb1 {[%clk 0:00:32.9]} 56. Ne3+ {[%clk 0:00:22.2]} 56... Kb3 {[%clk 0:00:34.1]}
57. Nd1 {[%clk 0:00:22.7]} 57... Bc2 {[%clk 0:00:34.3]} 58. Nc3 {[%clk
0:00:23.8]} 58... Kc4 {[%clk 0:00:31.3]} 59. Ne4 {[%clk 0:00:22.2]} 59... Kb3
{[%clk 0:00:30.5]} 60. Nf2 {[%clk 0:00:19.8]} 60... Kxb2 {[%clk 0:00:30.6]} 61.
Nxd3+ {[%clk 0:00:21.2]} 61... Bxd3 {[%clk 0:00:27.8]} 62. Kxd3 {[%clk
0:00:22.5]} 62... Kxa3 {[%clk 0:00:29.7]} 63. Kc3 {[%clk 0:00:20.7]} 63... Ka2
{[%clk 0:00:30.9]} 64. Kc2 {[%clk 0:00:21.6]} 64... a3 {[%clk 0:00:32.4]} 65.
Kc1 {[%clk 0:00:22.7]} 65... Kb3 {[%clk 0:00:33.9]} 66. Kb1 {[%clk 0:00:23.9]}
66... a2+ {[%clk 0:00:34.9]} 67. Ka1 {[%clk 0:00:25.4]} 67... Ka3 {[%clk
0:00:36.5]} 1/2-1/2

[Event "***Titled Tuesday 3|2 Blitz"]
[Site "Chess.com"]
[Date "2017.02.07"]
[Round "2"]
[White "AdrianaNikolova"]
[Black "jb2mix"]
[Result "0-1"]
[WhiteElo "2318"]
[BlackElo "2412"]
[TimeControl "180+2"]
[EndTime "13:28:24 PST"]
[Termination "jb2mix won by resignation"]

1. e4 {[%clk 0:03:01.9]} 1... e6 {[%clk 0:02:59.3]} 2. d4 {[%clk 0:02:57.6]}
2... d5 {[%clk 0:03:00.1]} 3. Nd2 {[%clk 0:02:55.8]} 3... h6 {[%clk 0:03:00.5]}
4. Ngf3 {[%clk 0:02:55.1]} 4... Nf6 {[%clk 0:03:00.9]} 5. Bd3 {[%clk 0:02:53]}
5... c5 {[%clk 0:03:00.6]} 6. c3 {[%clk 0:02:32.2]} 6... Nc6 {[%clk 0:02:58]} 7.
O-O {[%clk 0:02:30.2]} 7... cxd4 {[%clk 0:02:44.7]} 8. cxd4 {[%clk 0:02:19]}
8... dxe4 {[%clk 0:02:41.1]} 9. Nxe4 {[%clk 0:01:55.3]} 9... Be7 {[%clk
0:02:41.8]} 10. Qe2 {[%clk 0:01:42.8]} 10... Nb4 {[%clk 0:02:24.2]} 11. Bb5+
{[%clk 0:01:36.4]} 11... Bd7 {[%clk 0:02:24]} 12. Nxf6+ {[%clk 0:01:27.9]} 12...
Bxf6 {[%clk 0:02:22]} 13. Ne5 {[%clk 0:01:03.4]} 13... Bxe5 {[%clk 0:02:04.9]}
14. dxe5 {[%clk 0:01:01.2]} 14... O-O {[%clk 0:02:06]} 15. Bxd7 {[%clk
0:00:43.5]} 15... Qxd7 {[%clk 0:02:06.1]} 16. Qg4 {[%clk 0:00:34.3]} 16... Nc2
{[%clk 0:01:58.5]} 17. Bxh6 {[%clk 0:00:31.4]} 17... f5 {[%clk 0:01:59.4]} 18.
exf6 {[%clk 0:00:32]} 18... Rxf6 {[%clk 0:01:57]} 19. Rad1 {[%clk 0:00:30.1]}
19... Qf7 {[%clk 0:01:52.9]} 20. Bg5 {[%clk 0:00:27.9]} 20... Rg6 {[%clk
0:01:52.2]} 21. h4 {[%clk 0:00:28.9]} 21... e5 {[%clk 0:01:49.8]} 22. b3 {[%clk
0:00:28]} 22... Qe6 {[%clk 0:00:43.7]} 23. Qxe6+ {[%clk 0:00:17.2]} 23... Rxe6
{[%clk 0:00:45.6]} 24. Rd7 {[%clk 0:00:18.1]} 24... b5 {[%clk 0:00:30.4]} 25.
Rc1 {[%clk 0:00:18.8]} 25... Rc6 {[%clk 0:00:22.6]} 26. Re7 {[%clk 0:00:18.7]}
26... Rac8 {[%clk 0:00:08.7]} 27. Rxe5 {[%clk 0:00:18.4]} 27... a6 {[%clk
0:00:10.6]} 28. h5 {[%clk 0:00:17.2]} 28... Nb4 {[%clk 0:00:11.1]} 29. Rxc6
{[%clk 0:00:17.1]} 29... Rxc6 {[%clk 0:00:13]} 30. Re2 {[%clk 0:00:18.8]} 30...
Rc5 {[%clk 0:00:12.6]} 31. f4 {[%clk 0:00:19.7]} 31... Nd3 {[%clk 0:00:12.7]}
32. g4 {[%clk 0:00:19.3]} 32... Nc1 {[%clk 0:00:07.1]} 33. Rd2 {[%clk
0:00:18.1]} 33... Rc3 {[%clk 0:00:06.7]} 34. Kf2 {[%clk 0:00:17.1]} 34... Nd3+
{[%clk 0:00:07.6]} 35. Ke2 {[%clk 0:00:18.4]} 35... Nc5 {[%clk 0:00:07.5]} 36.
Rd8+ {[%clk 0:00:18.9]} 36... Kh7 {[%clk 0:00:08.1]} 37. Be7 {[%clk 0:00:19.9]}
37... Ne6 {[%clk 0:00:07.8]} 38. Bd6 {[%clk 0:00:18.6]} 38... Nxd8 {[%clk
0:00:08.4]} 39. g5 {[%clk 0:00:19.3]} 39... Rc2+ {[%clk 0:00:09.3]} 40. Kd3
{[%clk 0:00:19.9]} 40... Rxa2 {[%clk 0:00:10.3]} 41. b4 {[%clk 0:00:21.3]} 41...
Ne6 {[%clk 0:00:10.9]} 42. Ke4 {[%clk 0:00:17.8]} 42... Re2+ {[%clk 0:00:10.2]}
43. Kd5 {[%clk 0:00:14.9]} 43... g6 {[%clk 0:00:06.6]} 44. hxg6+ {[%clk
0:00:09.8]} 44... Kxg6 {[%clk 0:00:08.5]} 45. Be5 {[%clk 0:00:09.9]} 45... Ng7
{[%clk 0:00:09.5]} 46. Kc6 {[%clk 0:00:09.3]} 46... Nh5 {[%clk 0:00:10.7]} 47.
Kb6 {[%clk 0:00:09.7]} 47... Re4 {[%clk 0:00:12.3]} 48. Ka5 {[%clk 0:00:07.6]}
48... Nxf4 {[%clk 0:00:12.8]} 49. Bd6 {[%clk 0:00:08.3]} 49... Nd5 {[%clk
0:00:13.4]} 50. Kxa6 {[%clk 0:00:08.7]} 50... Nxb4+ {[%clk 0:00:13.8]} 51. Kxb5
{[%clk 0:00:10]} 51... Nd3 {[%clk 0:00:15.5]} 52. Kc6 {[%clk 0:00:09.4]} 52...
Kxg5 {[%clk 0:00:16.6]} 53. Kd5 {[%clk 0:00:10.6]} 53... Kf5 {[%clk 0:00:18.5]}
54. Bh2 {[%clk 0:00:10.7]} 54... Nf4+ {[%clk 0:00:19]} 55. Kc5 {[%clk
0:00:11.6]} 55... Kg4 {[%clk 0:00:19.9]} 56. Bg1 {[%clk 0:00:12.3]} 56... Re1
{[%clk 0:00:21]} 57. Bd4 {[%clk 0:00:12.7]} 57... Ne6+ {[%clk 0:00:22.2]} 58.
Kd5 {[%clk 0:00:13.1]} 58... Nxd4 {[%clk 0:00:23.8]} 59. Kxd4 {[%clk 0:00:15]}
59... Kf3 {[%clk 0:00:25.1]} 60. Kd5 {[%clk 0:00:16]} 60... Kf4 {[%clk
0:00:25.7]} 0-1

[Event "***Titled Tuesday 3|2 Blitz"]
[Site "Chess.com"]
[Date "2017.02.07"]
[Round "2"]
[White "GMHess"]
[Black "1stSecond"]
[Result "1/2-1/2"]
[WhiteElo "2588"]
[BlackElo "2580"]
[TimeControl "180+2"]
[EndTime "13:28:27 PST"]
[Termination "Game drawn by agreement"]

1. d4 {[%clk 0:03:02]} 1... Nf6 {[%clk 0:03:00.3]} 2. c4 {[%clk 0:02:54.8]} 2...
e6 {[%clk 0:03:01.4]} 3. Nc3 {[%clk 0:02:51.6]} 3... Bb4 {[%clk 0:03:02.5]} 4.
Qc2 {[%clk 0:02:52.3]} 4... O-O {[%clk 0:03:02.9]} 5. a3 {[%clk 0:02:52.7]} 5...
Bxc3+ {[%clk 0:03:00.8]} 6. Qxc3 {[%clk 0:02:54.6]} 6... b6 {[%clk 0:03:02.3]}
7. Bf4 {[%clk 0:02:34.9]} 7... Bb7 {[%clk 0:03:02.5]} 8. Nf3 {[%clk 0:02:36.4]}
8... d6 {[%clk 0:02:59.2]} 9. e3 {[%clk 0:02:35.8]} 9... Nbd7 {[%clk 0:03:00.1]}
10. Bd3 {[%clk 0:02:11.5]} 10... Qe7 {[%clk 0:02:56.1]} 11. Bg3 {[%clk
0:02:04.1]} 11... Rfe8 {[%clk 0:02:56.8]} 12. O-O-O {[%clk 0:01:54.7]} 12... e5
{[%clk 0:02:47.6]} 13. dxe5 {[%clk 0:01:54]} 13... dxe5 {[%clk 0:02:45.3]} 14.
Bf5 {[%clk 0:01:39.6]} 14... g6 {[%clk 0:01:55.5]} 15. Bc2 {[%clk 0:01:37.1]}
15... Ne4 {[%clk 0:01:43]} 16. Qb4 {[%clk 0:01:03]} 16... Nec5 {[%clk
0:01:33.8]} 17. h4 {[%clk 0:00:40.4]} 17... h5 {[%clk 0:00:44.5]} 18. Ng5 {[%clk
0:00:34.3]} 18... Nf8 {[%clk 0:00:42]} 19. f3 {[%clk 0:00:21.3]} 19... f6 {[%clk
0:00:34.6]} 20. Nh3 {[%clk 0:00:21.9]} 20... a5 {[%clk 0:00:33.1]} 21. Qc3
{[%clk 0:00:22.7]} 21... Rad8 {[%clk 0:00:33.5]} 22. Nf2 {[%clk 0:00:21.2]}
22... Kg7 {[%clk 0:00:34]} 23. Rxd8 {[%clk 0:00:15.2]} 23... Rxd8 {[%clk
0:00:35.9]} 24. Rd1 {[%clk 0:00:16.6]} 24... Rxd1+ {[%clk 0:00:35.7]} 25. Kxd1
{[%clk 0:00:18.1]} 25... Qd6+ {[%clk 0:00:36.8]} 26. Ke2 {[%clk 0:00:19.1]}
26... Nfe6 {[%clk 0:00:36.7]} 27. b4 {[%clk 0:00:19.6]} 27... axb4 {[%clk
0:00:37.9]} 28. axb4 {[%clk 0:00:21.5]} 28... Na6 {[%clk 0:00:39.6]} 29. Nd3
{[%clk 0:00:21.3]} 29... Qe7 {[%clk 0:00:28.1]} 30. b5 {[%clk 0:00:13.9]} 30...
Nac5 {[%clk 0:00:22.9]} 31. Nb4 {[%clk 0:00:15.2]} 31... Nd4+ {[%clk 0:00:21.4]}
32. Kd2 {[%clk 0:00:07.4]} 32... Nxc2 {[%clk 0:00:21.2]} 33. Kxc2 {[%clk
0:00:09.3]} 33... Qd7 {[%clk 0:00:21.6]} 34. Nd3 {[%clk 0:00:08]} 34... Nxd3
{[%clk 0:00:09.6]} 35. Qxd3 {[%clk 0:00:09.9]} 35... Qxd3+ {[%clk 0:00:10.7]}
36. Kxd3 {[%clk 0:00:11.8]} 36... Kf7 {[%clk 0:00:11.9]} 37. e4 {[%clk
0:00:12.8]} 37... Ke6 {[%clk 0:00:13]} 38. f4 {[%clk 0:00:14.3]} 38... Kd6
{[%clk 0:00:11.8]} 39. fxe5+ {[%clk 0:00:15.1]} 39... fxe5 {[%clk 0:00:13.7]}
40. Bf2 {[%clk 0:00:15.7]} 40... Bc8 {[%clk 0:00:15.3]} 41. Be3 {[%clk
0:00:17.2]} 41... Bd7 {[%clk 0:00:15.6]} 42. Kc3 {[%clk 0:00:18]} 42... Bg4
{[%clk 0:00:16.7]} 43. Kd3 {[%clk 0:00:16]} 43... Bd1 {[%clk 0:00:17.8]} 44. Bh6
{[%clk 0:00:13]} 44... Bb3 {[%clk 0:00:17.6]} 45. Bf8+ {[%clk 0:00:13.8]} 45...
Kd7 {[%clk 0:00:18.5]} 46. Kc3 {[%clk 0:00:13.8]} 46... Ba2 {[%clk 0:00:18.8]}
47. Kd3 {[%clk 0:00:14.9]} 47... Bb1+ {[%clk 0:00:19.1]} 48. Ke3 {[%clk
0:00:16.1]} 48... Bc2 {[%clk 0:00:20.1]} 49. g3 {[%clk 0:00:13.9]} 49... Ke6
{[%clk 0:00:20.9]} 50. Ba3 {[%clk 0:00:13.1]} 50... Bd1 {[%clk 0:00:22]} 51. Bf8
{[%clk 0:00:13]} 51... Bg4 {[%clk 0:00:23.2]} 52. Kd2 {[%clk 0:00:11.6]} 52...
Bh3 {[%clk 0:00:24.4]} 53. Kd3 {[%clk 0:00:10.8]} 53... Bg2 {[%clk 0:00:24.9]}
54. Bh6 {[%clk 0:00:10.7]} 54... Bf1+ {[%clk 0:00:25.9]} 55. Kc3 {[%clk
0:00:11.5]} 55... Kd7 {[%clk 0:00:26.6]} 56. Bf8 {[%clk 0:00:12.2]} 56... Be2
{[%clk 0:00:22.6]} 57. Bg7 {[%clk 0:00:12.6]} 57... Ke6 {[%clk 0:00:22.6]} 58.
Bf8 {[%clk 0:00:13.8]} 58... Bf3 {[%clk 0:00:22.6]} 59. Kd3 {[%clk 0:00:14.5]}
59... Bg2 {[%clk 0:00:24.1]} 60. Ba3 {[%clk 0:00:14.8]} 60... Bf1+ {[%clk
0:00:23.6]} 61. Kc3 {[%clk 0:00:16.1]} 61... Kf6 {[%clk 0:00:23.3]} 62. Bc1
{[%clk 0:00:17.2]} 62... Be2 {[%clk 0:00:20.5]} 63. Bg5+ {[%clk 0:00:18.1]}
63... Ke6 {[%clk 0:00:22]} 64. Bd8 {[%clk 0:00:19.6]} 64... Kd7 {[%clk
0:00:23.3]} 65. Bf6 {[%clk 0:00:20.3]} 65... Kd6 {[%clk 0:00:24.8]} 66. Bg7
{[%clk 0:00:21.4]} 66... Bf3 {[%clk 0:00:25.7]} 67. Kd3 {[%clk 0:00:22.2]} 67...
Bd1 {[%clk 0:00:27.2]} 68. Bf8+ {[%clk 0:00:21.5]} 68... Ke6 {[%clk 0:00:28]}
1/2-1/2

[Event "***Titled Tuesday 3|2 Blitz"]
[Site "Chess.com"]
[Date "2017.02.07"]
[Round "2"]
[White "SCIM"]
[Black "nOcHeaTiNgKiD"]
[Result "0-1"]
[WhiteElo "2259"]
[BlackElo "2205"]
[TimeControl "180+2"]
[EndTime "13:28:58 PST"]
[Termination "nOcHeaTiNgKiD won by checkmate"]

1. d4 {[%clk 0:03:02]} 1... Nf6 {[%clk 0:02:59.4]} 2. c4 {[%clk 0:03:00.8]} 2...
g6 {[%clk 0:03:00.2]} 3. Nc3 {[%clk 0:03:01]} 3... Bg7 {[%clk 0:03:01.1]} 4. e4
{[%clk 0:03:00.8]} 4... d6 {[%clk 0:03:02]} 5. f3 {[%clk 0:03:02]} 5... O-O
{[%clk 0:03:02.5]} 6. Be3 {[%clk 0:03:02.4]} 6... e5 {[%clk 0:03:03.4]} 7. d5
{[%clk 0:03:00.5]} 7... Nh5 {[%clk 0:03:04.4]} 8. Bd3 {[%clk 0:03:00.4]} 8...
Qh4+ {[%clk 0:02:55]} 9. Bf2 {[%clk 0:02:59.8]} 9... Qg5 {[%clk 0:02:51.1]} 10.
g3 {[%clk 0:02:54.2]} 10... Qe7 {[%clk 0:02:49.4]} 11. Nge2 {[%clk 0:02:48.7]}
11... a5 {[%clk 0:02:42.2]} 12. Qd2 {[%clk 0:02:45]} 12... a4 {[%clk 0:02:41.3]}
13. O-O {[%clk 0:02:39.1]} 13... Bh3 {[%clk 0:02:37.6]} 14. Rfc1 {[%clk
0:02:37.9]} 14... Nd7 {[%clk 0:02:23.1]} 15. Kh1 {[%clk 0:02:33.6]} 15... Nc5
{[%clk 0:02:19.7]} 16. Ng1 {[%clk 0:02:30.8]} 16... Bd7 {[%clk 0:02:18.4]} 17.
Rab1 {[%clk 0:02:25.2]} 17... f5 {[%clk 0:02:12.9]} 18. exf5 {[%clk 0:02:23.9]}
18... gxf5 {[%clk 0:02:10.2]} 19. Re1 {[%clk 0:02:18.5]} 19... Qf6 {[%clk
0:02:00.7]} 20. Bf1 {[%clk 0:02:13.5]} 20... Bh6 {[%clk 0:01:59.4]} 21. Qd1
{[%clk 0:02:03.3]} 21... Ng7 {[%clk 0:01:31.4]} 22. f4 {[%clk 0:01:35.2]} 22...
e4 {[%clk 0:01:26.8]} 23. Bd4 {[%clk 0:01:34.2]} 23... Qg6 {[%clk 0:01:25]} 24.
Be2 {[%clk 0:01:32.2]} 24... Rae8 {[%clk 0:01:12.7]} 25. Be3 {[%clk 0:01:32.6]}
25... b6 {[%clk 0:01:03.2]} 26. Nh3 {[%clk 0:01:32.9]} 26... Qf7 {[%clk
0:01:00.1]} 27. Nf2 {[%clk 0:01:32.7]} 27... Re7 {[%clk 0:00:57.3]} 28. Rg1
{[%clk 0:01:33.1]} 28... Kh8 {[%clk 0:00:50.8]} 29. Qd4 {[%clk 0:01:33]} 29...
Qf6 {[%clk 0:00:44.7]} 30. Qxf6 {[%clk 0:01:25.9]} 30... Rxf6 {[%clk 0:00:46.6]}
31. Rbf1 {[%clk 0:01:24.8]} 31... Ne8 {[%clk 0:00:46.4]} 32. Bd4 {[%clk
0:01:14.1]} 32... Bg7 {[%clk 0:00:47.5]} 33. Bxf6 {[%clk 0:01:14.4]} 33... Bxf6
{[%clk 0:00:48.9]} 34. g4 {[%clk 0:01:13.6]} 34... a3 {[%clk 0:00:49.1]} 35. Rb1
{[%clk 0:00:50.3]} 35... axb2 {[%clk 0:00:50]} 36. Nfd1 {[%clk 0:00:45.6]} 36...
Bd4 {[%clk 0:00:49.5]} 37. Rg2 {[%clk 0:00:43.5]} 37... Nd3 {[%clk 0:00:31.8]}
38. gxf5 {[%clk 0:00:16.3]} 38... Nxf4 {[%clk 0:00:30.2]} 39. Rg3 {[%clk
0:00:13.8]} 39... Bxf5 {[%clk 0:00:22.9]} 40. Rxb2 {[%clk 0:00:13.6]} 40... Nf6
{[%clk 0:00:20.7]} 41. Rd2 {[%clk 0:00:13.6]} 41... Be5 {[%clk 0:00:18.4]} 42.
Rg5 {[%clk 0:00:14.3]} 42... Bh3 {[%clk 0:00:17.6]} 43. Rg3 {[%clk 0:00:14]}
43... Bf5 {[%clk 0:00:18]} 44. Rg5 {[%clk 0:00:14]} 44... Bh3 {[%clk 0:00:19.2]}
45. Nb5 {[%clk 0:00:13.9]} 45... h6 {[%clk 0:00:17.9]} 46. Rg3 {[%clk
0:00:13.5]} 46... Bf5 {[%clk 0:00:18.6]} 47. Ne3 {[%clk 0:00:14.3]} 47... Bc8
{[%clk 0:00:16.7]} 48. Rg1 {[%clk 0:00:14.3]} 48... Nh3 {[%clk 0:00:16.4]} 49.
Rf1 {[%clk 0:00:14.4]} 49... Bf4 {[%clk 0:00:11.9]} 50. Na7 {[%clk 0:00:07.5]}
50... Bd7 {[%clk 0:00:11]} 51. Nc6 {[%clk 0:00:05.4]} 51... Bxc6 {[%clk
0:00:11.9]} 52. dxc6 {[%clk 0:00:06.3]} 52... Bxe3 {[%clk 0:00:13.3]} 53. Rb2
{[%clk 0:00:07.3]} 53... Bd4 {[%clk 0:00:13.7]} 54. Rb3 {[%clk 0:00:08.3]} 54...
Nf2+ {[%clk 0:00:13.9]} 55. Kg2 {[%clk 0:00:09.2]} 55... N2g4 {[%clk 0:00:15.1]}
56. Bxg4 {[%clk 0:00:08.7]} 56... Nxg4 {[%clk 0:00:17]} 57. Rf4 {[%clk
0:00:09.2]} 57... Ne3+ {[%clk 0:00:17.1]} 58. Kh3 {[%clk 0:00:10.2]} 58... Nxc4
{[%clk 0:00:17.7]} 59. Rb4 {[%clk 0:00:10.9]} 59... d5 {[%clk 0:00:17.9]} 60.
Ra4 {[%clk 0:00:11.3]} 60... Bg7 {[%clk 0:00:17]} 61. Ra8+ {[%clk 0:00:12.3]}
61... Kh7 {[%clk 0:00:18.2]} 62. Rd8 {[%clk 0:00:13]} 62... e3 {[%clk
0:00:16.3]} 63. Rd7 {[%clk 0:00:13.7]} 63... Re5 {[%clk 0:00:14.4]} 64. Rg4
{[%clk 0:00:14.1]} 64... Rg5 {[%clk 0:00:13.4]} 65. Rxg5 {[%clk 0:00:14.2]}
65... hxg5 {[%clk 0:00:15.3]} 66. Rxc7 {[%clk 0:00:15.1]} 66... e2 {[%clk
0:00:15.9]} 67. Re7 {[%clk 0:00:16.5]} 67... Ne5 {[%clk 0:00:17.1]} 68. c7
{[%clk 0:00:17]} 68... e1=Q {[%clk 0:00:18.3]} 69. c8=Q {[%clk 0:00:17.5]} 69...
Qe3+ {[%clk 0:00:19.1]} 70. Kg2 {[%clk 0:00:18.2]} 70... Qf3+ {[%clk 0:00:20]}
71. Kg1 {[%clk 0:00:19.3]} 71... Qe3+ {[%clk 0:00:18.6]} 72. Kg2 {[%clk
0:00:20.1]} 72... Qe2+ {[%clk 0:00:20]} 73. Kg3 {[%clk 0:00:14.3]} 73... Qf3#
{[%clk 0:00:20.5]} 0-1